fUSD/lending_fUSD_20251023
["ID","MTS","AMOUNT","RATE_DAILY","PERIOD"]
[392181907,1761241868128,167.01265877,7.945e-05,2]
[392181908,1761241868153,309.46706161,7.945e-05,2]
[392181909,1761241868178,167.01265877,7.945e-05,2]
[392181910,1761241868203,213.20444477,7.945e-05,2]
[392181911,1761241868229,734.90402746,7.945e-05,2]
[392181912,1761241868254,260.01363485,7.945e-05,2]
[392182359,1761242443561,22.81770776,0.00017,2]
[392182360,1761242443589,227.18229224,0.00017,2]
[392182485,1761242570954,-166.66,0.00024313,30]
[392182486,1761242570980,-179.2258836,0.00024731,2]
[392182487,1761242571005,-158.03331336,0.00024732,48]
[392182488,1761242571031,-166.66,0.00024825,30]
[392182489,1761242571055,-500.0,0.0002483,2]
[392182490,1761242571079,-304.60928756,0.0002483,2]
[392182491,1761242571103,-150.0,0.0002483,2]
[392182492,1761242571128,-300.0,0.0002483,2]
[392182493,1761242571152,-895.0,0.0002483,2]
[392182494,1761242571176,-195.0,0.00024831,2]
[392182495,1761242571202,-300.0,0.00024831,2]
[392182496,1761242571228,-1200.0,0.00024831,2]
[392182497,1761242571254,-2024.96469765,0.00024832,2]
[392182498,1761242571284,-1431.26000642,0.00024832,2]
[392182499,1761242571308,-154.09066892,0.00024832,2]
[392182500,1761242571336,-176.76056241,0.00024832,2]
[392182501,1761242571360,-150.0,0.000249,2]
[392182502,1761242571391,-300.0,0.00024916,2]
[392182503,1761242571415,-255.84379406,0.00024917,2]
[392182504,1761242571445,-151.0,0.00024917,2]
[392182505,1761242571470,-151.0,0.00024917,2]
[392182506,1761242571495,-151.0,0.00024917,2]
[392182507,1761242571522,-151.0,0.00024917,2]
[392182508,1761242571545,-151.0,0.00024917,2]
[392182509,1761242571575,-151.0,0.00024917,2]
[392182510,1761242571600,-151.0,0.00024917,2]
[392182511,1761242571624,-151.0,0.00024917,2]
[392182512,1761242571649,-151.0,0.00024917,2]
[392182513,1761242571674,-151.0,0.00024917,2]
[392182514,1761242571698,-151.0,0.00024917,2]
[392182515,1761242571723,-151.0,0.00024917,2]
[392182516,1761242571748,-151.0,0.00024917,2]
[392182517,1761242571772,-151.0,0.00024917,2]
[392182518,1761242571797,-151.0,0.00024917,2]
[392182519,1761242571831,-151.0,0.00024917,2]
[392182520,1761242571864,-151.0,0.00024917,2]
[392182521,1761242571893,-151.0,0.00024917,2]
[392182522,1761242571926,-151.0,0.00024917,2]
[392182523,1761242571976,-151.0,0.00024917,2]
[392182524,1761242572016,-561.34,0.00024917,8]
[392182525,1761242572051,-500.0,0.00024919,2]
[392182526,1761242572084,-500.0,0.00024919,2]
[392182527,1761242572121,-500.0,0.00024919,2]
[392182528,1761242572154,-508.66748208,0.00024919,2]
[392182529,1761242572188,-500.0,0.00024919,2]
[392182530,1761242572222,-500.0,0.00024919,2]
[392182531,1761242572258,-500.0,0.00024919,2]
[392182532,1761242572288,-500.0,0.00024919,2]
[392182533,1761242572322,-500.0,0.00024919,2]
[392182534,1761242572359,-500.0,0.00024919,2]
[392182535,1761242572391,-500.0,0.00024919,2]
[392182536,1761242572423,-500.0,0.00024919,2]
[392182537,1761242572455,-500.0,0.00024919,2]
[392182538,1761242572493,-500.0,0.00024919,2]
[392182539,1761242572527,-500.0,0.00024919,2]
[392182540,1761242572560,-500.0,0.00024919,2]
[392182541,1761242572588,-500.0,0.00024919,2]
[392182542,1761242572619,-500.0,0.00024919,2]
[392182543,1761242572655,-500.0,0.00024919,2]
[392182544,1761242572686,-500.0,0.00024919,2]
[392182545,1761242572712,-500.0,0.00024919,2]
[392182546,1761242572743,-500.0,0.00024919,2]
[392182547,1761242572776,-500.0,0.00024919,2]
[392182548,1761242572805,-500.0,0.00024919,2]
[392182549,1761242572838,-500.0,0.00024919,2]
[392182550,1761242572868,-500.0,0.00024919,2]
[392182551,1761242572901,-500.0,0.00024919,2]
[392182552,1761242572933,-500.0,0.00024919,2]
[392182553,1761242572963,-500.0,0.00024919,2]
[392182554,1761242572993,-500.0,0.00024919,2]
[392182555,1761242573023,-500.0,0.00024919,2]
[392182556,1761242573054,-500.0,0.00024919,2]
[392182557,1761242573084,-500.0,0.00024919,2]
[392182558,1761242573114,-500.0,0.00024919,2]
[392182559,1761242573147,-500.0,0.00024919,2]
[392182560,1761242573178,-500.0,0.00024919,2]
[392182561,1761242573209,-500.0,0.00024919,2]
[392182562,1761242573242,-500.0,0.00024919,2]
[392182563,1761242573273,-500.0,0.00024919,2]
[392182564,1761242573304,-500.0,0.00024919,2]
[392182565,1761242573335,-500.0,0.00024919,2]
[392182566,1761242573365,-500.0,0.00024919,2]
[392182567,1761242573395,-500.0,0.00024919,2]
[392182568,1761242573427,-500.0,0.00024919,2]
[392182569,1761242573461,-500.0,0.00024919,2]
[392182570,1761242573665,-500.0,0.00024919,2]
[392182571,1761242573694,-500.0,0.00024919,2]
[392182572,1761242573721,-500.0,0.00024919,2]
[392182573,1761242573749,-500.0,0.00024919,2]
[392182574,1761242573774,-500.0,0.00024919,2]
[392182575,1761242573804,-500.0,0.00024919,2]
[392182576,1761242573830,-500.0,0.00024919,2]
[392182577,1761242573857,-500.0,0.00024919,2]
[392182578,1761242573884,-500.0,0.00024919,2]
[392182579,1761242573911,-386.98884492,0.00024921,2]
[392182580,1761242573936,-530.45454987,0.00024921,2]
[392182581,1761242573962,-500.0,0.00024921,2]
[392182582,1761242573988,-585.73621366,0.00024921,2]
[392182583,1761242574015,-500.0,0.00024921,2]
[392182584,1761242574043,-500.0,0.00024921,2]
[392182585,1761242574069,-500.0,0.00024921,2]
[392182586,1761242574098,-500.0,0.00024921,2]
[392182587,1761242574126,-208884.563088,0.00024922,2]
[392182588,1761242574155,-73127.1930137,0.00024922,2]
[392182589,1761242574182,-295.0,0.00024928,2]
[392182590,1761242574210,-212.98,0.00024931,2]
[392182591,1761242574236,-500.0,0.00024931,2]
[392182592,1761242574263,-500.0,0.00024931,2]
[392182593,1761242574290,-500.0,0.00024931,2]
[392182594,1761242574317,-500.0,0.00024931,2]
[392182595,1761242574344,-500.0,0.00024931,2]
[392182596,1761242574372,-500.0,0.00024931,2]
[392182597,1761242574397,-500.0,0.00024932,2]
[392182598,1761242574421,-690888.193421,0.00024932,2]
[392182599,1761242574447,-933.64057801,0.00024932,2]
[392182600,1761242574475,-500.0,0.00024991,2]
[392182601,1761242574614,500.0,0.00024919,2]
[392182603,1761242574645,500.0,0.00024919,2]
[392182604,1761242574678,500.0,0.00024919,2]
[392182605,1761242574709,500.0,0.00024919,2]
[392182606,1761242574741,500.0,0.00024919,2]
[392182607,1761242574772,500.0,0.00024919,2]
[392182608,1761242574802,500.0,0.00024919,2]
[392182609,1761242574837,500.0,0.00024919,2]
[392182610,1761242574868,500.0,0.00024919,2]
[392182611,1761242574909,500.0,0.00024919,2]
[392182612,1761242574946,500.0,0.00024919,2]
[392182613,1761242574981,458.26959672,0.00024919,2]
[392182614,1761242575014,500.0,0.00024919,2]
[392182615,1761242575045,500.0,0.00024919,2]
[392182616,1761242575080,500.0,0.00024919,2]
[392182617,1761242575109,500.0,0.00024919,2]
[392182618,1761242575147,500.0,0.00024919,2]
[392182619,1761242575178,500.0,0.00024919,2]
[392182620,1761242575209,500.0,0.00024919,2]
[392182621,1761242576001,177.88645503,0.00024828,2]
[392182824,1761242953171,-500.0,0.00024921,2]
[392182825,1761242953191,-152.84304592,0.00024921,2]
[392182826,1761242953211,-784.4646117,0.00024929,2]
[392182827,1761242953231,-500.0,0.00024931,2]
[392182828,1761242953251,-500.0,0.00024931,2]
[392182829,1761242953271,-500.0,0.00024931,2]
[392182830,1761242953290,-500.0,0.00024932,2]
[392182831,1761242953311,-300.0,0.00024999,2]
[392182832,1761242953336,-1200.0,0.00024999,2]
[392182833,1761242953356,-1018.05,0.00025,2]
[392182834,1761242953379,-166.66,0.00025337,30]
[392182835,1761242953399,-1018.05,0.000255,2]
[392182836,1761242953420,-166.66,0.00025849,30]
[392182837,1761242953439,-577.021354,0.0002585,2]
[392182838,1761242953458,-500.0,0.0002585,2]
[392182839,1761242953477,-500.0,0.0002585,2]
[392182840,1761242953495,-570.98443138,0.0002585,2]
[392182841,1761242953515,-500.0,0.0002585,2]
[392182842,1761242953533,-500.0,0.0002585,2]
[392182843,1761242953556,-500.0,0.0002585,2]
[392182844,1761242953577,-174.88928588,0.0002585,2]
[392182845,1761242953597,-166.66,0.00026361,30]
[392182846,1761242953618,-339.31532798,0.00026398,2]
[392182847,1761242953644,-500.0,0.00026398,2]
[392182848,1761242953663,-1000.0,0.00026398,2]
[392182849,1761242953843,-1000.0,0.00026398,2]
[392182850,1761242953864,-166.66,0.00026872,30]
[392182851,1761242953883,-150.0,0.00027,2]
[392182852,1761242953905,-400.0,0.00027205,2]
[392182853,1761242953925,-250.0,0.00027413,2]
[392182854,1761242953945,-418.78876365,0.0002754,5]
[392182855,1761242953966,-500.0,0.0002754,5]
[392182856,1761242953987,-500.0,0.0002754,5]
[392182857,1761242954007,-500.0,0.0002754,5]
[392182858,1761242954027,-500.0,0.0002754,5]
[392182859,1761242954047,-500.75564392,0.0002754,5]
[392182860,1761242954068,-238.59,0.00027671,7]
[392182861,1761242954088,-150.0,0.00028,30]
[392182862,1761242954107,-150.0,0.00028,2]
[392182863,1761242954129,-500.0,0.00028088,5]
[392182864,1761242954148,-446.38832103,0.00028088,5]
[392182865,1761242954169,-1000.0,0.00028088,5]
[392182866,1761242954191,-500.0,0.00028088,2]
[392182867,1761242954212,-500.0,0.00028088,2]
[392182868,1761242954233,-500.0,0.00028088,2]
[392182869,1761242954254,-500.0,0.00028088,2]
[392182870,1761242954274,-500.0,0.00028088,2]
[392182871,1761242954295,-500.0,0.00028088,2]
[392182872,1761242954317,-465.67425173,0.00028088,2]
[392182874,1761242956104,-34.32574827,0.00028088,2]
[392182875,1761242956126,-500.0,0.00028088,2]
[392182876,1761242956148,-602.3013593,0.00028088,2]
[392182877,1761242956169,-784.4646117,0.00028089,2]
[392182878,1761242956189,-500.0,0.00028175,5]
[392182879,1761242956209,-1000.0,0.00028723,5]
[392182880,1761242956229,-500.0,0.0003,30]
[392182881,1761242956249,-784.4646117,0.00031249,2]
[392182882,1761242956268,-299.08,0.00031271,2]
[392182883,1761242956288,-500.0,0.00032174,2]
[392182884,1761242956308,-1889.00472563,0.00034011,2]
[392182885,1761242962093,-3110.99527437,0.00034011,2]
[392182886,1761242962115,-643.98872328,0.00034052,2]
[392182887,1761242964095,-884.20127672,0.00034052,2]
[392182888,1761242964117,-784.4646117,0.00034409,2]
[392182889,1761242964138,-1501.0,0.000351,2]
[392182890,1761242964159,-334.82,0.00035649,2]
[392182891,1761242964179,-212.84430135,0.00035916,2]
[392182949,1761243031962,-250.0,0.00028088,2]
[392182950,1761243032011,-250.0,0.00028088,2]
[392182951,1761243032023,-300.0,0.00030897,120]
[392182952,1761243032033,-195.0,0.00030897,120]
[392182953,1761243032043,-519.15569865,0.00035916,2]
[392182954,1761243032052,-1717.15529286,0.00036,5]
[392182955,1761243032065,-3008.21390149,0.00036,5]
[392182956,1761243032074,-400.0,0.00036199,2]
[392182957,1761243032084,-1000.0,0.000362,2]
[392182958,1761243032094,-1882.71,0.00036611,2]
[392182959,1761243032103,-500.0,0.00036627,30]
[392182960,1761243032113,-150.0,0.00036633,30]
[392182961,1761243032122,-150.0,0.00036633,30]
[392182962,1761243032132,-334.82,0.00036986,2]
[392182963,1761243032143,-666.0,0.00037298,3]
[392182964,1761243032152,-500.0,0.000382,7]
[392182965,1761243032162,-476.23156132,0.00038211,2]
[392182966,1761243032172,-334.82,0.00038323,2]
[392182967,1761243032181,-164.31,0.00038367,2]
[392182968,1761243032191,-509.88,0.00038367,120]
[392182969,1761243032200,-560.0,0.00038765,5]
[392182970,1761243032209,-334.82,0.00039659,2]
[392182971,1761243032219,-233.58986561,0.00039726,15]
[392182972,1761243032228,-1000.0,0.000399,2]
[392182973,1761243032237,-3924.5,0.0004029,2]
[392182974,1761243032247,-2520.63,0.0004029,2]
[392182975,1761243032256,-7833.55,0.0004029,30]
[392182976,1761243032266,-334.82,0.00040996,2]
[392182977,1761243032275,-151.0,0.00041086,120]
[392182978,1761243032284,-284.862604,0.00041086,15]
[392182979,1761243032293,-151.0,0.00041086,120]
[392182980,1761243032303,-151.0,0.00041086,120]
[392182981,1761243032312,-151.0,0.00041086,120]
[392182982,1761243032321,-151.0,0.00041086,120]
[392182983,1761243032330,-151.0,0.00041086,120]
[392182984,1761243032339,-151.0,0.00041086,120]
[392182985,1761243032348,-151.0,0.00041086,120]
[392182986,1761243032358,-274.82663,0.00041086,120]
[392182988,1761243032367,-151.0,0.00041086,120]
[392182991,1761243032378,-151.0,0.00041086,120]
[392182994,1761243032388,-151.0,0.00041086,120]
[392182995,1761243032397,-151.0,0.00041086,120]
[392182996,1761243032406,-151.0,0.00041086,120]
[392182997,1761243032415,-151.0,0.00041086,120]
[392182998,1761243032424,-474.11,0.00041086,30]
[392182999,1761243032433,-999.0,0.00041095,120]
[392183000,1761243032442,-151.0,0.00041096,120]
[392183001,1761243032451,-151.0,0.00041096,120]
[392183002,1761243032461,-151.000001,0.00041096,90]
[392183003,1761243032470,-153.700556,0.00041096,120]
[392183004,1761243032613,-154.2615,0.00041096,120]
[392183005,1761243032622,-151.0,0.00041096,120]
[392183006,1761243032631,-151.0,0.00041096,120]
[392183007,1761243032640,-151.0,0.00041096,120]
[392183008,1761243032650,-151.0,0.00041096,120]
[392183009,1761243032659,-289.052904,0.00041096,120]
[392183010,1761243032669,-153.16293,0.00041096,30]
[392183011,1761243032678,-500.0,0.00041356,31]
[392183012,1761243032687,-270.89219144,0.00041356,31]
[392183013,1761243032696,-371.31818491,0.00041356,31]
[392183014,1761243032705,-610.01534957,0.00041356,31]
[392183015,1761243032715,-7412.05224518,0.00041357,2]
[392183016,1761243032730,-3388.0,0.000353,5]
[392183017,1761243032739,-335.63740529,0.00041357,2]
[392183018,1761243032751,-12252.31034953,0.00041357,2]
[392183019,1761243032760,-474.11,0.0004136,30]
[392183020,1761243032770,-783.0,0.00041513,5]
[392183021,1761243032779,-474.11,0.00041634,30]
[392183022,1761243032789,-775.62446225,0.0004167,30]
[392183023,1761243032798,-500.0,0.00041727,10]
[392183024,1761243032807,-194.9538651,0.00041727,10]
[392183025,1761243032816,-474.11,0.00041908,30]
[392183026,1761243032825,-1982.37,0.00042012,2]
[392183027,1761243032835,-327.79,0.00042155,2]
[392183028,1761243032845,-474.12,0.00042182,30]
[392183029,1761243032854,-1311.0,0.00042193,2]
[392183030,1761243032864,-1591.0,0.00042193,2]
[392183031,1761243032873,-605.0,0.00042193,2]
[392183032,1761243032882,-817.0,0.00042193,2]
[392183033,1761243032891,-2486.22,0.00042207,2]
[392183034,1761243032901,-5000.0,0.0004221,2]
[392183035,1761243032910,-1211.96,0.00042213,2]
[392183036,1761243032920,-2027.0785991,0.00042263,15]
[392183037,1761243032930,-511.18920727,0.00042293,10]
[392183038,1761243032939,-500.0,0.00042293,10]
[392183039,1761243032948,-500.0,0.00042293,10]
[392183040,1761243032958,-210.23270036,0.00042293,10]
[392183041,1761243032967,-5000.0,0.00042303,2]
[392183042,1761243032977,-20000.0,0.00042357,2]
[392183043,1761243032986,-5000.0,0.00042363,2]
[392183044,1761243032995,-282.43106553,0.00042372,2]
[392183045,1761243033005,-151.0,0.0004241,14]
[392183046,1761243033015,-4407.66405865,0.00042413,2]
[392183047,1761243033034,-2537.17592943,0.00042413,2]
[392183048,1761243033052,-483.25999608,0.00042413,2]
[392183049,1761243033063,-16888.7454931,0.00042413,2]
[392183050,1761243033077,-683.15452274,0.00042413,2]
[392183051,1761243033087,-766.84547726,0.00042484,2]
[392183052,1761243033098,-296.60699386,0.00042484,2]
[392183053,1761243033110,-2451.1148987,0.00042484,2]
[392183054,1761243033125,-400.0,0.00042484,2]
[392183062,1761243037887,-181.13,0.00028,2]
[392183063,1761243037896,-511.3668177,0.00040289,31]
[392183064,1761243037906,-2192.92,0.00042497,2]
[392183065,1761243037916,-151.0,0.00042497,120]
[392183066,1761243037926,-151.0,0.00042497,120]
[392183067,1761243037936,-243.735592,0.00042497,120]
[392183068,1761243037946,-880.44759028,0.00042498,2]
[392183254,1761243039992,-859.54,0.00042498,2]
[392183257,1761243040004,-3260.01240972,0.00042498,2]
[392183258,1761243040013,-2806.6,0.00042501,2]
[392183260,1761243040026,-213.20553697,0.00042501,30]
[392183262,1761243040036,-151.0,0.00042554,120]
[392183264,1761243040045,-151.0,0.00042554,120]
[392183266,1761243040054,-151.0,0.00042554,120]
[392183268,1761243040064,-151.0,0.00042554,120]
[392183270,1761243040073,-151.0,0.00042554,120]
[392183272,1761243040082,-155.132799,0.00042554,120]
[392183274,1761243040092,-180.020172,0.00042554,120]
[392183276,1761243040102,-2027.07859907,0.00042558,15]
[392183278,1761243040111,-160.53137194,0.00042561,8]
[392183280,1761243040121,-5000.0,0.00042564,2]
[392183282,1761243040130,-151.0,0.0004258,120]
[392183284,1761243040139,-151.0,0.0004258,120]
[392183286,1761243040149,-151.0,0.0004258,120]
[392183288,1761243040159,-151.0,0.0004258,120]
[392183290,1761243040168,-151.0,0.0004258,120]
[392183292,1761243040177,-500.0,0.0004258,7]
[392183294,1761243040187,-333.00754913,0.0004258,7]
[392183301,1761243040244,-400.62565019,0.0004258,7]
[392183303,1761243040257,-683.36680068,0.0004258,7]
[392183305,1761243040268,-64.01184872,0.00042599,2]
[392183308,1761243040287,-435.98815128,0.00042599,2]
[392183311,1761243040299,-500.0,0.00042599,120]
[392183313,1761243040310,-20547.64071433,0.000426,2]
[392183315,1761243040324,-581.34790231,0.000426,2]
[392183319,1761243040347,-3871.01138336,0.000426,2]
[392183321,1761243040359,-311.04,0.00042601,2]
[392183323,1761243040371,-5000.0,0.00042622,2]
[392183325,1761243040382,-500.0,0.00042629,10]
[392183328,1761243040393,-500.0,0.00042629,10]
[392183330,1761243040404,-5000.0,0.00042631,2]
[392183332,1761243040414,-1288.13400585,0.00042641,15]
[392183334,1761243040424,-1008.7,0.00042651,2]
[392183336,1761243040434,-16118.19,0.00042671,2]
[392183339,1761243040446,-151.0,0.00042675,120]
[392183341,1761243040459,-2303.1,0.00042684,2]
[392183343,1761243040470,-25000.0,0.00042685,2]
[392183345,1761243040481,-151.0,0.00042685,120]
[392183347,1761243040492,-151.0,0.00042685,120]
[392183350,1761243040504,-204.12756,0.00042685,120]
[392183352,1761243040515,-204.12756,0.00042685,120]
[392183354,1761243040526,-204.12756,0.00042685,120]
[392183357,1761243040538,-204.12756,0.00042685,120]
[392183359,1761243040550,-8222.2021557,0.00042715,3]
[392183361,1761243040561,-2530.23,0.00042719,2]
[392183363,1761243040572,-151.0,0.00042724,120]
[392183365,1761243040583,-5000.0,0.00042725,2]
[392183368,1761243040597,-151.0,0.00042725,60]
[392183370,1761243040608,-151.0,0.00042725,120]
[392183372,1761243040619,-152.549496,0.00042725,30]
[392183374,1761243040631,-151.0,0.00042725,120]
[392183376,1761243040641,-151.0,0.00042725,120]
[392183379,1761243040652,-154.77978143,0.00042737,120]
[392183381,1761243040663,-8222.2021557,0.0004274,3]
[392183383,1761243040674,-151.0,0.00042741,120]
[392183385,1761243040685,-151.0,0.00042741,120]
[392183388,1761243040696,-151.0,0.00042741,120]
[392183390,1761243040708,-677.49,0.00042747,2]
[392183392,1761243040720,-151.0,0.00042747,120]
[392183394,1761243040732,-151.0,0.00042747,120]
[392183397,1761243040742,-8222.2021557,0.00042751,3]
[392183399,1761243040753,-5000.0,0.00042751,2]
[392183401,1761243040763,-5000.0,0.00042757,2]
[392183403,1761243040774,-5000.0,0.00042771,2]
[392183405,1761243040784,-151.0,0.00042771,120]
[392183407,1761243040794,-268.652213,0.00042771,120]
[392183410,1761243040804,-151.0,0.00042771,120]
[392183412,1761243040814,-151.0,0.00042771,120]
[392183414,1761243040825,-151.0,0.00042771,120]
[392183416,1761243040838,-8222.2021557,0.0004282,3]
[392183419,1761243040851,-1177.65810365,0.00042829,60]
[392183421,1761243040861,-5000.0,0.0004283,2]
[392183423,1761243040871,-771.07694409,0.00042841,10]
[392183425,1761243040882,-1000.47029499,0.00042841,10]
[392183427,1761243040892,-8222.2021557,0.00042841,3]
[392183429,1761243040902,-2027.07859907,0.00042853,15]
[392183431,1761243040912,-5000.0,0.00042861,2]
[392183434,1761243040923,-5000.0,0.00042879,2]
[392183436,1761243040934,-8222.2021557,0.00042884,3]
[392183438,1761243040944,-1288.13400577,0.00042894,15]
[392183440,1761243040955,-500.0,0.00042897,7]
[392183442,1761243040965,-5000.0,0.00042898,2]
[392183444,1761243040975,-8222.2021557,0.00042942,3]
[392183446,1761243040985,-5000.0,0.00042954,2]
[392183448,1761243040996,-154.0906689,0.00043039,15]
[392183450,1761243041007,-967.87,0.00043123,30]
[392183453,1761243041018,-475.46,0.00043123,30]
[392183455,1761243041032,-1407.2,0.00043123,30]
[392183457,1761243041042,-475.46,0.00043123,30]
[392183459,1761243041058,-8222.2021557,0.00043137,3]
[392183462,1761243041070,-1288.13400577,0.00043147,15]
[392183464,1761243041081,-2027.07859907,0.00043149,15]
[392183466,1761243041091,-160.53137192,0.00043153,10]
[392183468,1761243041104,-500.0,0.00043177,10]
[392183470,1761243041114,-500.0,0.00043229,2]
[392183471,1761243041125,-500.0,0.00043229,10]
[392183472,1761243041136,-505.51997312,0.00043229,3]
[392183473,1761243041146,-503.6743994,0.00043229,10]
[392183474,1761243041157,-500.0,0.00043229,10]
[392183475,1761243041168,-500.0,0.00043229,10]
[392183476,1761243041183,-502.2471513,0.00043229,10]
[392183478,1761243041193,-329.0,0.00043268,7]
[392183480,1761243041205,-16444.4043114,0.00043347,3]
[392183482,1761243041216,-509.88,0.00043348,120]
[392183484,1761243041226,-500.0,0.00043356,2]
[392183487,1761243041236,-423.40074217,0.00043356,120]
[392183489,1761243041248,-20000.0,0.00043357,2]
[392183491,1761243041259,-1288.13400577,0.00043401,15]
[392183493,1761243041270,-2027.07859907,0.00043444,15]
[392183495,1761243041280,-13395.163,0.00043462,60]
[392183497,1761243041291,-500.0,0.000435,60]
[392183499,1761243041301,-8222.2021557,0.00043578,3]
[392183502,1761243041312,-291.07,0.00043585,14]
[392183504,1761243041323,-8222.2021557,0.00043594,3]
[392183506,1761243041333,-156.193266,0.00043598,120]
[392183508,1761243041344,-151.0,0.00043598,120]
[392183510,1761243041355,-151.0,0.00043598,120]
[392183512,1761243041366,-151.0,0.00043598,120]
[392183515,1761243041376,-153.454905,0.00043598,120]
[392183517,1761243041387,-5606.0,0.00043599,7]
[392183519,1761243041397,-1288.13400577,0.00043654,15]
[392183521,1761243041408,-329.0,0.00043686,7]
[392183523,1761243041419,-2027.07859907,0.00043739,15]
[392183525,1761243041429,-160.53137192,0.00043746,13]
[392183528,1761243041440,-500.0,0.00043777,10]
[392183530,1761243041450,-8222.2021557,0.0004378,3]
[392183532,1761243041460,-8222.2021557,0.0004379,3]
[392183534,1761243041470,-18989.2483,0.000438,2]
[392183536,1761243041481,-1000.0,0.000438,2]
[392183538,1761243041492,-1127.0,0.000438,7]
[392183540,1761243041503,-8222.2021557,0.00043815,3]
[392183543,1761243041514,-12505.9548625,0.00043815,3]
[392183545,1761243041525,-24666.6064671,0.00043825,3]
[392183547,1761243041534,-25011.9097251,0.00043825,3]
[392183549,1761243041543,-500.0,0.00043835,120]
[392183551,1761243041552,-500.0,0.00043835,120]
[392183553,1761243041561,-500.0,0.00043835,30]
[392183555,1761243041570,-500.0,0.00043835,120]
[392183557,1761243041579,-500.0,0.00043835,120]
[392183559,1761243041588,-500.0,0.00043835,120]
[392183561,1761243041598,-500.0,0.00043835,120]
[392183563,1761243041607,-500.0,0.00043835,120]
[392183565,1761243041616,-500.0,0.00043835,120]
[392183583,1761243041779,-504.36116257,0.00043835,120]
[392183585,1761243041789,-578.75640244,0.00043835,120]
[392183587,1761243041798,-500.0,0.00043835,120]
[392183589,1761243041808,-500.0,0.00043835,120]
[392183591,1761243041817,-500.0,0.00043835,120]
[392183593,1761243041826,-517.77,0.00043835,120]
[392183595,1761243041835,-517.32,0.00043835,120]
[392183597,1761243041844,-500.0,0.00043835,120]
[392183599,1761243041854,-500.0,0.00043835,120]
[392183601,1761243041863,-500.0,0.00043835,120]
[392183603,1761243041873,-500.0,0.00043835,120]
[392183605,1761243041883,-500.0,0.00043835,2]
[392183607,1761243041892,-500.0,0.00043835,120]
[392183609,1761243041901,-500.0,0.00043835,60]
[392183611,1761243041910,-500.0,0.00043835,120]
[392183613,1761243041919,-500.0,0.00043835,120]
[392183615,1761243041928,-500.0,0.00043835,120]
[392183617,1761243041937,-500.0,0.00043835,120]
[392183619,1761243041946,-500.0,0.00043835,120]
[392183621,1761243041956,-500.0,0.00043835,120]
[392183623,1761243041965,-535.87,0.00043835,120]
[392183625,1761243041974,-500.0,0.00043835,120]
[392183627,1761243041983,-500.0,0.00043835,120]
[392183629,1761243041992,-500.0,0.00043835,120]
[392183631,1761243042002,-500.0,0.00043835,120]
[392183633,1761243042011,-500.0,0.00043835,120]
[392183635,1761243042021,-500.0,0.00043835,120]
[392183637,1761243042034,-500.0,0.00043835,120]
[392183639,1761243042043,-500.0,0.00043835,120]
[392183641,1761243042053,-500.0,0.00043835,120]
[392183643,1761243042062,-500.0,0.00043835,120]
[392183645,1761243042071,-500.0,0.00043835,120]
[392183647,1761243042080,-500.0,0.00043835,120]
[392183649,1761243042090,-500.0,0.00043835,120]
[392183651,1761243042099,-500.0,0.00043835,120]